[Event "Titled Tuesday Blitz January 11 2022"]
[White "Samadov, Read"]
[Black "Alavkin, Arseny"]
[WhiteFideId "13417444"]
[BlackFideId "4120612"]
[WhiteElo "2084"]
[BlackElo "2391"]
[Result "1-0"]
[Round "05"]
[TimeControl "180+1"]
[Date "2022.01.11"]
[WhiteClock "0:01:31"]
[BlackClock "0:02:17"]

1. d4 {[%clk 0:03:00]}  Nf6 {[%clk 0:02:57]} 2. c4 {[%clk 0:03:01]}  e6 {[%clk 0:02:57]} 3. Nf3 {[%clk 0:03:01]}  d5 {[%clk 0:02:57]} 4. g3 {[%clk 0:03:01]}  dxc4 {[%clk 0:02:57]} 5. Bg2 {[%clk 0:03:02]}  Bb4+ {[%clk 0:02:57]} 6. Bd2 {[%clk 0:03:00]}  c5 {[%clk 0:02:56]} 7. O-O {[%clk 0:02:59]}  O-O {[%clk 0:02:54]} 8. dxc5 {[%clk 0:02:57]}  Bxc5 {[%clk 0:02:54]} 9. Qc2 {[%clk 0:02:57]}  a6 {[%clk 0:02:52]} 10. Qxc4 {[%clk 0:02:57]}  Nbd7 {[%clk 0:02:53]} 11. Nc3 {[%clk 0:02:44]}  b5 {[%clk 0:02:52]} 12. Qh4 {[%clk 0:02:43]}  Bb7 {[%clk 0:02:51]} 13. Rad1 {[%clk 0:02:40]}  Qb6 {[%clk 0:02:50]} 14. Bg5 {[%clk 0:02:35]}  Rad8 {[%clk 0:02:49]} 15. a3 {[%clk 0:02:11]}  h6 {[%clk 0:02:48]} 16. Bxh6 {[%clk 0:02:09]}  gxh6 {[%clk 0:02:49]} 17. Qxh6 {[%clk 0:02:09]}  Be7 {[%clk 0:02:45]} 18. Qg5+ {[%clk 0:02:02]}  Kh8 {[%clk 0:02:31]} 19. Qh4+ {[%clk 0:01:56]}  Kg7 {[%clk 0:02:28]} 20. Qg5+ {[%clk 0:01:53]}  Kh7 {[%clk 0:02:20]} 21. Rd4 {[%clk 0:01:37]}  Bxf3 {[%clk 0:02:19]} 22. Rh4+ {[%clk 0:01:35]}  Bh5 {[%clk 0:02:19]} 23. Be4+ {[%clk 0:01:33]}  Kh8 {[%clk 0:02:19]} 24. Rxh5+ {[%clk 0:01:30]}  Nxh5 {[%clk 0:02:17]} 25. Qh6+ {[%clk 0:01:31]}  Kg8 {[%clk 0:02:17]} 26. Qh7# {[%clk 0:01:31]} 1-0


[Site "https://www.chess.com"]

[Event "Titled Tuesday Blitz January 11 2022"]
[White "Shimanov, Aleksandr"]
[Black "Rasulov, Vugar"]
[WhiteFideId "4198603"]
[BlackFideId "13402390"]
[WhiteElo "2636"]
[BlackElo "2560"]
[Result "1-0"]
[Round "05"]
[TimeControl "180+1"]
[Date "2022.01.11"]
[WhiteClock "0:01:39"]
[BlackClock "0:00:16"]

1. d4 {[%clk 0:03:00]}  Nf6 {[%clk 0:02:59]} 2. Nf3 {[%clk 0:03:00]}  c5 {[%clk 0:02:59]} 3. c3 {[%clk 0:03:00]}  Qc7 {[%clk 0:02:58]} 4. Bg5 {[%clk 0:02:57]}  d6 {[%clk 0:02:57]} 5. Nbd2 {[%clk 0:02:56]}  Nbd7 {[%clk 0:02:57]} 6. e4 {[%clk 0:02:55]}  g6 {[%clk 0:02:57]} 7. Bd3 {[%clk 0:02:54]}  Bg7 {[%clk 0:02:57]} 8. O-O {[%clk 0:02:51]}  O-O {[%clk 0:02:57]} 9. h3 {[%clk 0:02:44]}  a6 {[%clk 0:02:51]} 10. Re1 {[%clk 0:02:43]}  e5 {[%clk 0:02:50]} 11. dxe5 {[%clk 0:02:33]}  dxe5 {[%clk 0:02:47]} 12. a4 {[%clk 0:02:32]}  h6 {[%clk 0:02:41]} 13. Be3 {[%clk 0:02:31]}  Nh5 {[%clk 0:02:41]} 14. Qc2 {[%clk 0:02:29]}  Rb8 {[%clk 0:02:39]} 15. a5 {[%clk 0:02:29]}  Nf4 {[%clk 0:02:36]} 16. Bf1 {[%clk 0:02:28]}  Nf6 {[%clk 0:02:19]} 17. Nc4 {[%clk 0:02:19]}  Nh7 {[%clk 0:02:19]} 18. Nb6 {[%clk 0:02:13]}  Be6 {[%clk 0:02:18]} 19. Rad1 {[%clk 0:02:09]}  Rbd8 {[%clk 0:02:17]} 20. Bxf4 {[%clk 0:02:08]}  exf4 {[%clk 0:02:17]} 21. Bc4 {[%clk 0:02:09]}  Bxc4 {[%clk 0:02:00]} 22. Nxc4 {[%clk 0:02:10]}  Nf6 {[%clk 0:02:00]} 23. Rxd8 {[%clk 0:02:04]}  Rxd8 {[%clk 0:02:00]} 24. e5 {[%clk 0:02:05]}  Nh7 {[%clk 0:01:28]} 25. e6 {[%clk 0:02:05]}  fxe6 {[%clk 0:01:13]} 26. Qxg6 {[%clk 0:02:01]}  Nf8 {[%clk 0:01:13]} 27. Qe4 {[%clk 0:02:00]}  Rd5 {[%clk 0:01:08]} 28. Nfe5 {[%clk 0:01:55]}  Bxe5 {[%clk 0:00:55]} 29. Nxe5 {[%clk 0:01:56]}  Qxa5 {[%clk 0:00:55]} 30. Qxf4 {[%clk 0:01:56]}  Qc7 {[%clk 0:00:56]} 31. Re3 {[%clk 0:01:55]}  Nh7 {[%clk 0:00:48]} 32. h4 {[%clk 0:01:43]}  Nf8 {[%clk 0:00:15]} 33. Rg3+ {[%clk 0:01:41]}  Kh7 {[%clk 0:00:16]} 34. Qxf8 {[%clk 0:01:39]} 1-0


[Site "https://www.chess.com"]

[Event "Titled Tuesday Blitz January 11 2022"]
[White "Siddharth, Jagadeesh"]
[Black "Hakobyan, Aram"]
[WhiteFideId "5818320"]
[BlackFideId "13306677"]
[WhiteElo "2127"]
[BlackElo "2557"]
[Result "0-1"]
[Round "05"]
[TimeControl "180+1"]
[Date "2022.01.11"]
[WhiteClock "0:00:29"]
[BlackClock "0:01:39"]

1. d4 {[%clk 0:03:00]}  Nf6 {[%clk 0:03:00]} 2. c4 {[%clk 0:03:00]}  g6 {[%clk 0:03:00]} 3. g3 {[%clk 0:02:58]}  c5 {[%clk 0:03:00]} 4. Nf3 {[%clk 0:02:57]}  Bg7 {[%clk 0:03:01]} 5. Nc3 {[%clk 0:02:57]}  Qa5 {[%clk 0:03:01]} 6. Qa4 {[%clk 0:02:52]}  Qxa4 {[%clk 0:02:58]} 7. Nxa4 {[%clk 0:02:53]}  cxd4 {[%clk 0:02:59]} 8. Nxd4 {[%clk 0:02:51]}  Nc6 {[%clk 0:03:00]} 9. Nxc6 {[%clk 0:02:49]}  bxc6 {[%clk 0:03:00]} 10. b3 {[%clk 0:02:50]}  Ne4 {[%clk 0:02:36]} 11. Bb2 {[%clk 0:02:49]}  Bxb2 {[%clk 0:02:35]} 12. Nxb2 {[%clk 0:02:50]}  a5 {[%clk 0:02:36]} 13. Bg2 {[%clk 0:02:50]}  Nc5 {[%clk 0:02:36]} 14. O-O {[%clk 0:02:47]}  Rb8 {[%clk 0:02:34]} 15. Nd3 {[%clk 0:02:42]}  Na6 {[%clk 0:02:26]} 16. Rfd1 {[%clk 0:02:31]}  Nb4 {[%clk 0:02:24]} 17. Nxb4 {[%clk 0:02:25]}  Rxb4 {[%clk 0:02:24]} 18. Bh3 {[%clk 0:02:21]}  f5 {[%clk 0:02:22]} 19. Rd3 {[%clk 0:02:14]}  c5 {[%clk 0:02:22]} 20. Bg2 {[%clk 0:02:14]}  d6 {[%clk 0:02:21]} 21. Bc6+ {[%clk 0:02:11]}  Bd7 {[%clk 0:02:21]} 22. Bxd7+ {[%clk 0:01:48]}  Kxd7 {[%clk 0:02:22]} 23. Rc1 {[%clk 0:01:29]}  a4 {[%clk 0:02:19]} 24. Kg2 {[%clk 0:01:26]}  Rhb8 {[%clk 0:02:19]} 25. Rcc3 {[%clk 0:01:26]}  axb3 {[%clk 0:02:19]} 26. axb3 {[%clk 0:01:27]}  Ra8 {[%clk 0:02:20]} 27. Rc2 {[%clk 0:01:22]}  Ra3 {[%clk 0:02:19]} 28. Rb2 {[%clk 0:01:23]}  Kc6 {[%clk 0:02:16]} 29. f4 {[%clk 0:01:22]}  Ra1 {[%clk 0:02:14]} 30. h4 {[%clk 0:01:19]}  Rc1 {[%clk 0:02:14]} 31. Ra2 {[%clk 0:01:17]}  Rb1 {[%clk 0:02:07]} 32. Ra7 {[%clk 0:01:17]}  R4xb3 {[%clk 0:01:57]} 33. Rxe7 {[%clk 0:01:16]}  Rb7 {[%clk 0:01:57]} 34. Re6 {[%clk 0:01:11]}  Rd7 {[%clk 0:01:58]} 35. e4 {[%clk 0:01:10]}  Rc1 {[%clk 0:01:48]} 36. e5 {[%clk 0:01:07]}  Rxc4 {[%clk 0:01:45]} 37. Rdxd6+ {[%clk 0:01:02]}  Rxd6 {[%clk 0:01:46]} 38. Rxd6+ {[%clk 0:01:02]}  Kb5 {[%clk 0:01:39]} 39. Rd7 {[%clk 0:00:57]}  h5 {[%clk 0:01:40]} 40. Rb7+ {[%clk 0:00:46]}  Kc6 {[%clk 0:01:39]} 41. Rg7 {[%clk 0:00:46]}  Re4 {[%clk 0:01:40]} 42. Rxg6+ {[%clk 0:00:47]}  Kb5 {[%clk 0:01:40]} 43. Rg8 {[%clk 0:00:47]}  c4 {[%clk 0:01:41]} 44. Rc8 {[%clk 0:00:45]}  Kb4 {[%clk 0:01:41]} 45. Kf3 {[%clk 0:00:41]}  c3 {[%clk 0:01:41]} 46. Rb8+ {[%clk 0:00:37]}  Ka3 {[%clk 0:01:41]} 47. Rc8 {[%clk 0:00:38]}  Kb2 {[%clk 0:01:41]} 48. Rb8+ {[%clk 0:00:37]}  Kc1 {[%clk 0:01:40]} 49. Rc8 {[%clk 0:00:30]}  c2 {[%clk 0:01:40]} 50. Kf2 {[%clk 0:00:30]}  Kd2 {[%clk 0:01:38]} 51. Rd8+ {[%clk 0:00:29]}  Kc3 {[%clk 0:01:39]} 0-1


[Site "https://www.chess.com"]

[Event "Titled Tuesday Blitz January 11 2022"]
[White "Sipetin, Vladislav"]
[Black "Tari, Aryan"]
[WhiteFideId "24176893"]
[BlackFideId "1510045"]
[WhiteElo "2228"]
[BlackElo "2567"]
[Result "0-1"]
[Round "05"]
[TimeControl "180+1"]
[Date "2022.01.11"]
[WhiteClock "0:00:03"]
[BlackClock "0:00:45"]

1. e4 {[%clk 0:03:00]}  c6 {[%clk 0:02:58]} 2. Nf3 {[%clk 0:03:00]}  d5 {[%clk 0:02:58]} 3. exd5 {[%clk 0:03:01]}  cxd5 {[%clk 0:02:57]} 4. Ne5 {[%clk 0:03:02]}  Nf6 {[%clk 0:02:55]} 5. d4 {[%clk 0:03:01]}  a6 {[%clk 0:02:49]} 6. Bd3 {[%clk 0:02:52]}  Nc6 {[%clk 0:02:48]} 7. c3 {[%clk 0:02:47]}  g6 {[%clk 0:02:38]} 8. O-O {[%clk 0:02:46]}  Bg7 {[%clk 0:02:37]} 9. Re1 {[%clk 0:02:40]}  O-O {[%clk 0:02:21]} 10. Nd2 {[%clk 0:02:38]}  Nd7 {[%clk 0:02:15]} 11. Nxc6 {[%clk 0:02:27]}  bxc6 {[%clk 0:02:15]} 12. Nf3 {[%clk 0:02:28]}  c5 {[%clk 0:02:14]} 13. Qe2 {[%clk 0:02:13]}  e6 {[%clk 0:02:08]} 14. Bf4 {[%clk 0:02:04]}  Qb6 {[%clk 0:02:03]} 15. Qd2 {[%clk 0:01:45]}  a5 {[%clk 0:01:57]} 16. h4 {[%clk 0:01:42]}  Ba6 {[%clk 0:01:52]} 17. Bxa6 {[%clk 0:01:37]}  Rxa6 {[%clk 0:01:53]} 18. h5 {[%clk 0:01:37]}  cxd4 {[%clk 0:01:53]} 19. cxd4 {[%clk 0:01:37]}  Qb4 {[%clk 0:01:46]} 20. Qd3 {[%clk 0:01:00]}  Rc6 {[%clk 0:01:42]} 21. h6 {[%clk 0:00:47]}  Bf6 {[%clk 0:01:40]} 22. Rac1 {[%clk 0:00:47]}  Rfc8 {[%clk 0:01:36]} 23. b3 {[%clk 0:00:43]}  Nc5 {[%clk 0:01:14]} 24. Qb1 {[%clk 0:00:29]}  Ne4 {[%clk 0:01:06]} 25. Rxc6 {[%clk 0:00:29]}  Rxc6 {[%clk 0:01:07]} 26. Rc1 {[%clk 0:00:29]}  Qb5 {[%clk 0:01:02]} 27. a4 {[%clk 0:00:21]}  Qb7 {[%clk 0:01:02]} 28. Rxc6 {[%clk 0:00:12]}  Qxc6 {[%clk 0:01:03]} 29. Qd3 {[%clk 0:00:12]}  g5 {[%clk 0:00:59]} 30. Be5 {[%clk 0:00:07]}  Bxe5 {[%clk 0:00:49]} 31. Nxe5 {[%clk 0:00:08]}  Qc1+ {[%clk 0:00:49]} 32. Kh2 {[%clk 0:00:08]}  Nxf2 {[%clk 0:00:45]} 33. Qf3 {[%clk 0:00:02]}  Qh1+ {[%clk 0:00:45]} 34. Kg3 {[%clk 0:00:03]}  Qh4# {[%clk 0:00:45]} 0-1


[Site "https://www.chess.com"]

[Event "Titled Tuesday Blitz January 11 2022"]
[White "Stoleriu, George"]
[Black "Janaszak, Dawid"]
[WhiteFideId "1227505"]
[BlackFideId "1119206"]
[WhiteElo "2203"]
[BlackElo "2199"]
[Result "0-1"]
[Round "05"]
[TimeControl "180+1"]
[Date "2022.01.11"]
[WhiteClock "0:00:04"]
[BlackClock "0:00:08"]

1. e4 {[%clk 0:02:58]}  c5 {[%clk 0:02:59]} 2. Nf3 {[%clk 0:02:56]}  Nc6 {[%clk 0:02:59]} 3. Bb5 {[%clk 0:02:56]}  g6 {[%clk 0:02:58]} 4. Bxc6 {[%clk 0:02:50]}  dxc6 {[%clk 0:02:59]} 5. d3 {[%clk 0:02:49]}  Bg7 {[%clk 0:02:57]} 6. h3 {[%clk 0:02:49]}  e5 {[%clk 0:02:55]} 7. Be3 {[%clk 0:02:47]}  Qe7 {[%clk 0:02:55]} 8. O-O {[%clk 0:02:45]}  Nf6 {[%clk 0:02:50]} 9. a4 {[%clk 0:02:45]}  Nd7 {[%clk 0:02:40]} 10. Na3 {[%clk 0:02:44]}  O-O {[%clk 0:02:26]} 11. Nc4 {[%clk 0:02:41]}  f5 {[%clk 0:02:23]} 12. exf5 {[%clk 0:02:28]}  gxf5 {[%clk 0:02:24]} 13. Re1 {[%clk 0:02:28]}  f4 {[%clk 0:02:04]} 14. Bd2 {[%clk 0:02:25]}  Rf5 {[%clk 0:01:41]} 15. Qe2 {[%clk 0:02:13]}  b5 {[%clk 0:01:06]} 16. axb5 {[%clk 0:02:09]}  cxb5 {[%clk 0:01:05]} 17. Qe4 {[%clk 0:02:09]}  bxc4 {[%clk 0:00:58]} 18. Qxa8 {[%clk 0:01:49]}  Rf8 {[%clk 0:00:54]} 19. Qd5+ {[%clk 0:01:44]}  Kh8 {[%clk 0:00:54]} 20. Rxa7 {[%clk 0:01:36]}  cxd3 {[%clk 0:00:54]} 21. cxd3 {[%clk 0:01:35]}  Nb6 {[%clk 0:00:32]} 22. Rxe7 {[%clk 0:01:26]}  Nxd5 {[%clk 0:00:33]} 23. Ra7 {[%clk 0:01:16]}  Re8 {[%clk 0:00:24]} 24. Ra8 {[%clk 0:01:05]}  Nb6 {[%clk 0:00:22]} 25. Ra5 {[%clk 0:00:58]}  c4 {[%clk 0:00:18]} 26. Rb5 {[%clk 0:00:53]}  Nd7 {[%clk 0:00:13]} 27. Bc3 {[%clk 0:00:28]}  cxd3 {[%clk 0:00:12]} 28. Nxe5 {[%clk 0:00:28]}  Nxe5 {[%clk 0:00:08]} 29. Bxe5 {[%clk 0:00:28]}  d2 {[%clk 0:00:09]} 30. Bxg7+ {[%clk 0:00:16]}  Kxg7 {[%clk 0:00:10]} 31. Rf1 {[%clk 0:00:16]}  Ba6 {[%clk 0:00:07]} 32. Rd5 {[%clk 0:00:14]}  Bxf1 {[%clk 0:00:07]} 33. Rxd2 {[%clk 0:00:15]}  Re1 {[%clk 0:00:07]} 34. Kh2 {[%clk 0:00:15]}  Kf6 {[%clk 0:00:08]} 35. Rd4 {[%clk 0:00:14]}  Ke5 {[%clk 0:00:08]} 36. Rb4 {[%clk 0:00:14]}  Bd3 {[%clk 0:00:06]} 37. Rb7 {[%clk 0:00:11]}  Kf6 {[%clk 0:00:04]} 38. Rb6+ {[%clk 0:00:11]}  Kf5 {[%clk 0:00:04]} 39. Rb7 {[%clk 0:00:11]}  Kf6 {[%clk 0:00:04]} 40. Rb6+ {[%clk 0:00:12]}  Re6 {[%clk 0:00:05]} 41. Rb4 {[%clk 0:00:11]}  Kf5 {[%clk 0:00:04]} 42. g3 {[%clk 0:00:10]}  fxg3+ {[%clk 0:00:03]} 43. Kxg3 {[%clk 0:00:11]}  Rg6+ {[%clk 0:00:03]} 44. Kf3 {[%clk 0:00:11]}  Rd6 {[%clk 0:00:02]} 45. Rf4+ {[%clk 0:00:10]}  Ke5 {[%clk 0:00:02]} 46. Rh4 {[%clk 0:00:10]}  Bg6 {[%clk 0:00:03]} 47. Ke3 {[%clk 0:00:10]}  Kf6 {[%clk 0:00:03]} 48. Rf4+ {[%clk 0:00:10]}  Ke5 {[%clk 0:00:03]} 49. Rb4 {[%clk 0:00:10]}  Rc6 {[%clk 0:00:03]} 50. Rb5+ {[%clk 0:00:11]}  Ke6 {[%clk 0:00:04]} 51. f4 {[%clk 0:00:11]}  Rc2 {[%clk 0:00:04]} 52. Re5+ {[%clk 0:00:11]}  Kf6 {[%clk 0:00:04]} 53. b4 {[%clk 0:00:12]}  Rc3+ {[%clk 0:00:04]} 54. Kd4 {[%clk 0:00:12]}  Rxh3 {[%clk 0:00:05]} 55. b5 {[%clk 0:00:12]}  Rd3+ {[%clk 0:00:05]} 56. Kc5 {[%clk 0:00:13]}  Rc3+ {[%clk 0:00:05]} 57. Kd6 {[%clk 0:00:13]}  Rc4 {[%clk 0:00:05]} 58. b6 {[%clk 0:00:13]}  Rxf4 {[%clk 0:00:05]} 59. Rb5 {[%clk 0:00:12]}  Rd4+ {[%clk 0:00:05]} 60. Kc7 {[%clk 0:00:11]}  Be4 {[%clk 0:00:05]} 61. Rh5 {[%clk 0:00:11]}  Kg6 {[%clk 0:00:04]} 62. Rh4 {[%clk 0:00:10]}  Rc4+ {[%clk 0:00:04]} 63. Kd6 {[%clk 0:00:10]}  Kg5 {[%clk 0:00:04]} 64. Rh2 {[%clk 0:00:08]}  Rb4 {[%clk 0:00:05]} 65. Kc5 {[%clk 0:00:08]}  Rb1 {[%clk 0:00:05]} 66. Re2 {[%clk 0:00:08]}  Bf3 {[%clk 0:00:04]} 67. Re3 {[%clk 0:00:08]}  Kf4 {[%clk 0:00:04]} 68. Re7 {[%clk 0:00:09]}  h5 {[%clk 0:00:05]} 69. Rf7+ {[%clk 0:00:09]}  Kg3 {[%clk 0:00:05]} 70. Rg7+ {[%clk 0:00:10]}  Kf2 {[%clk 0:00:05]} 71. Rh7 {[%clk 0:00:10]}  Kg3 {[%clk 0:00:05]} 72. Rg7+ {[%clk 0:00:10]}  Kh3 {[%clk 0:00:06]} 73. Rf7 {[%clk 0:00:11]}  Bg2 {[%clk 0:00:06]} 74. Re7 {[%clk 0:00:09]}  h4 {[%clk 0:00:06]} 75. Re3+ {[%clk 0:00:09]}  Kh2 {[%clk 0:00:07]} 76. Re2 {[%clk 0:00:10]}  h3 {[%clk 0:00:07]} 77. Rd2 {[%clk 0:00:10]}  Kh1 {[%clk 0:00:07]} 78. Rf2 {[%clk 0:00:05]}  h2 {[%clk 0:00:07]} 79. Rf7 {[%clk 0:00:04]}  Kg1 {[%clk 0:00:08]} 0-1


[Site "https://www.chess.com"]

[Event "Titled Tuesday Blitz January 11 2022"]
[White "Yoo, Christopher Woojin"]
[Black "Gaehwiler, Gabriel"]
[WhiteFideId "30909694"]
[BlackFideId "1314530"]
[WhiteElo "2105"]
[BlackElo "2383"]
[Result "1-0"]
[Round "05"]
[TimeControl "180+1"]
[Date "2022.01.11"]
[WhiteClock "0:00:03"]
[BlackClock "0:00:02"]

1. e4 {[%clk 0:03:00]}  e5 {[%clk 0:02:55]} 2. Nf3 {[%clk 0:03:00]}  Nf6 {[%clk 0:02:55]} 3. d4 {[%clk 0:02:57]}  Nxe4 {[%clk 0:02:51]} 4. Bd3 {[%clk 0:02:56]}  d5 {[%clk 0:02:50]} 5. Nxe5 {[%clk 0:02:56]}  Nd7 {[%clk 0:02:49]} 6. Nxd7 {[%clk 0:02:56]}  Bxd7 {[%clk 0:02:50]} 7. O-O {[%clk 0:02:56]}  Be7 {[%clk 0:02:48]} 8. Nd2 {[%clk 0:02:53]}  Nd6 {[%clk 0:02:04]} 9. Qh5 {[%clk 0:02:22]}  Be6 {[%clk 0:01:19]} 10. Nf3 {[%clk 0:01:38]}  g6 {[%clk 0:01:11]} 11. Qh6 {[%clk 0:01:37]}  Bf6 {[%clk 0:01:07]} 12. Re1 {[%clk 0:01:18]}  Qe7 {[%clk 0:01:03]} 13. b3 {[%clk 0:01:09]}  O-O-O {[%clk 0:01:01]} 14. c4 {[%clk 0:01:08]}  Qd7 {[%clk 0:00:53]} 15. Qf4 {[%clk 0:00:31]}  Bg7 {[%clk 0:00:49]} 16. Ne5 {[%clk 0:00:29]}  Qe8 {[%clk 0:00:38]} 17. cxd5 {[%clk 0:00:24]}  Bxd5 {[%clk 0:00:37]} 18. Ba3 {[%clk 0:00:24]}  Kb8 {[%clk 0:00:20]} 19. Nxg6 {[%clk 0:00:19]}  hxg6 {[%clk 0:00:19]} 20. Rxe8 {[%clk 0:00:18]}  Rhxe8 {[%clk 0:00:20]} 21. Bb2 {[%clk 0:00:13]}  Ne4 {[%clk 0:00:18]} 22. f3 {[%clk 0:00:07]}  Nd6 {[%clk 0:00:18]} 23. Kf2 {[%clk 0:00:07]}  Rh8 {[%clk 0:00:17]} 24. h4 {[%clk 0:00:06]}  Be6 {[%clk 0:00:16]} 25. Rh1 {[%clk 0:00:03]}  Nf5 {[%clk 0:00:15]} 26. Bxf5 {[%clk 0:00:03]}  Bxf5 {[%clk 0:00:15]} 27. g4 {[%clk 0:00:04]}  Be6 {[%clk 0:00:15]} 28. h5 {[%clk 0:00:04]}  gxh5 {[%clk 0:00:13]} 29. Rxh5 {[%clk 0:00:05]}  Rhe8 {[%clk 0:00:13]} 30. d5 {[%clk 0:00:02]}  Bxb2 {[%clk 0:00:12]} 31. dxe6 {[%clk 0:00:02]}  Bd4+ {[%clk 0:00:12]} 32. Kg2 {[%clk 0:00:02]}  Rxe6 {[%clk 0:00:11]} 33. Qxf7 {[%clk 0:00:02]}  Re2+ {[%clk 0:00:11]} 34. Kg3 {[%clk 0:00:03]}  Bf2+ {[%clk 0:00:09]} 35. Kf4 {[%clk 0:00:03]}  Be3+ {[%clk 0:00:08]} 36. Kf5 {[%clk 0:00:03]}  a5 {[%clk 0:00:08]} 37. g5 {[%clk 0:00:02]}  Rf2 {[%clk 0:00:06]} 38. Ke4 {[%clk 0:00:02]}  Re2 {[%clk 0:00:05]} 39. Kf5 {[%clk 0:00:01]}  Rf2 {[%clk 0:00:06]} 40. Rh3 {[%clk 0:00:02]}  Rd4 {[%clk 0:00:02]} 41. Qe8+ {[%clk 0:00:02]}  Ka7 {[%clk 0:00:02]} 42. Qxe3 {[%clk 0:00:03]} 1-0


[Site "https://www.chess.com"]

[Event "Titled Tuesday Blitz January 11 2022"]
[White "Bacrot, Etienne"]
[Black "Pert, Richard G"]
[WhiteFideId "605506"]
[BlackFideId "404748"]
[WhiteElo "2673"]
[BlackElo "2441"]
[Result "1-0"]
[Round "06"]
[TimeControl "180+1"]
[Date "2022.01.11"]
[WhiteClock "0:00:06"]
[BlackClock "0:00:05"]

1. e4 {[%clk 0:03:00]}  c6 {[%clk 0:02:59]} 2. Nf3 {[%clk 0:02:58]}  d5 {[%clk 0:02:59]} 3. Nc3 {[%clk 0:02:59]}  Bg4 {[%clk 0:02:57]} 4. h3 {[%clk 0:02:56]}  Bxf3 {[%clk 0:02:57]} 5. Qxf3 {[%clk 0:02:55]}  Nf6 {[%clk 0:02:57]} 6. d3 {[%clk 0:02:53]}  e6 {[%clk 0:02:55]} 7. a3 {[%clk 0:02:53]}  Nbd7 {[%clk 0:02:45]} 8. g3 {[%clk 0:02:52]}  Qa5 {[%clk 0:02:44]} 9. Bd2 {[%clk 0:02:43]}  Qb6 {[%clk 0:02:43]} 10. Rb1 {[%clk 0:02:32]}  d4 {[%clk 0:02:33]} 11. Nd1 {[%clk 0:02:23]}  Bxa3 {[%clk 0:02:30]} 12. Bg2 {[%clk 0:02:23]}  Bb4 {[%clk 0:02:26]} 13. c3 {[%clk 0:02:23]}  Bc5 {[%clk 0:01:55]} 14. O-O {[%clk 0:02:17]}  O-O-O {[%clk 0:01:42]} 15. b4 {[%clk 0:01:58]}  dxc3 {[%clk 0:01:39]} 16. Nxc3 {[%clk 0:01:55]}  Ne5 {[%clk 0:01:29]} 17. Qe2 {[%clk 0:01:36]}  Bd4 {[%clk 0:01:29]} 18. Kh2 {[%clk 0:01:32]}  h6 {[%clk 0:01:13]} 19. b5 {[%clk 0:01:21]}  c5 {[%clk 0:01:10]} 20. Na4 {[%clk 0:01:20]}  Qd6 {[%clk 0:01:05]} 21. b6 {[%clk 0:01:17]}  a6 {[%clk 0:01:05]} 22. Rfc1 {[%clk 0:01:13]}  Kb8 {[%clk 0:01:02]} 23. f4 {[%clk 0:01:10]}  Nxd3 {[%clk 0:01:02]} 24. e5 {[%clk 0:01:11]}  Nxc1 {[%clk 0:00:51]} 25. Rxc1 {[%clk 0:00:51]}  Qd7 {[%clk 0:00:47]} 26. exf6 {[%clk 0:00:49]}  Qxa4 {[%clk 0:00:44]} 27. fxg7 {[%clk 0:00:43]}  Rhg8 {[%clk 0:00:42]} 28. Qe4 {[%clk 0:00:37]}  Qc6 {[%clk 0:00:35]} 29. Qc2 {[%clk 0:00:16]}  Qd7 {[%clk 0:00:30]} 30. f5 {[%clk 0:00:16]}  Rxg7 {[%clk 0:00:27]} 31. Bxh6 {[%clk 0:00:15]}  Rgg8 {[%clk 0:00:25]} 32. fxe6 {[%clk 0:00:14]}  fxe6 {[%clk 0:00:25]} 33. Qe4 {[%clk 0:00:13]}  e5 {[%clk 0:00:19]} 34. Rf1 {[%clk 0:00:11]}  Rge8 {[%clk 0:00:18]} 35. Rf6 {[%clk 0:00:11]}  Re7 {[%clk 0:00:18]} 36. Bg5 {[%clk 0:00:10]}  Rg7 {[%clk 0:00:17]} 37. Bh4 {[%clk 0:00:09]}  Rh8 {[%clk 0:00:16]} 38. Qf3 {[%clk 0:00:06]}  Rhg8 {[%clk 0:00:13]} 39. Rf8+ {[%clk 0:00:06]}  Rxf8 {[%clk 0:00:08]} 40. Qxf8+ {[%clk 0:00:07]}  Qc8 {[%clk 0:00:07]} 41. Qxg7 {[%clk 0:00:07]}  e4 {[%clk 0:00:08]} 42. Qe7 {[%clk 0:00:06]}  e3 {[%clk 0:00:09]} 43. Bg5 {[%clk 0:00:06]}  Ka8 {[%clk 0:00:09]} 44. Bf4 {[%clk 0:00:06]}  c4 {[%clk 0:00:09]} 45. Qc7 {[%clk 0:00:06]}  Qxc7 {[%clk 0:00:05]} 46. bxc7 {[%clk 0:00:06]} 1-0


[Site "https://www.chess.com"]

[Event "Titled Tuesday Blitz January 11 2022"]
[White "Bluebaum, Matthias"]
[Black "Vysochin, Spartak"]
[WhiteFideId "24651516"]
[BlackFideId "14103516"]
[WhiteElo "2550"]
[BlackElo "2401"]
[Result "0-1"]
[Round "06"]
[TimeControl "180+1"]
[Date "2022.01.11"]
[WhiteClock "0:01:52"]
[BlackClock "0:02:49"]

1. d4 {[%clk 0:03:00]}  d5 {[%clk 0:02:59]} 2. c4 {[%clk 0:02:54]}  c6 {[%clk 0:02:59]} 3. Nc3 {[%clk 0:02:55]}  Nf6 {[%clk 0:02:58]} 4. e3 {[%clk 0:02:44]}  Bf5 {[%clk 0:02:53]} 5. Nf3 {[%clk 0:02:45]}  e6 {[%clk 0:02:51]} 6. Bd3 {[%clk 0:02:34]}  Bxd3 {[%clk 0:02:50]} 7. Qxd3 {[%clk 0:02:35]}  Nbd7 {[%clk 0:02:50]} 8. O-O {[%clk 0:02:32]}  Be7 {[%clk 0:02:50]} 9. e4 {[%clk 0:01:59]}  dxe4 {[%clk 0:02:49]} 10. Nxe4 {[%clk 0:01:50]}  Nxe4 {[%clk 0:02:49]} 11. Qxe4 {[%clk 0:01:51]}  O-O {[%clk 0:02:49]} 12. Qe2 {[%clk 0:01:52]} 0-1


[Site "https://www.chess.com"]

[Event "Titled Tuesday Blitz January 11 2022"]
[White "Boruchovsky, Avital"]
[Black "Salimova, Nurgyul"]
[WhiteFideId "2800055"]
[BlackFideId "2915138"]
[WhiteElo "2469"]
[BlackElo "2185"]
[Result "1/2-1/2"]
[Round "06"]
[TimeControl "180+1"]
[Date "2022.01.11"]
[WhiteClock "0:00:34"]
[BlackClock "0:00:20"]

1. c4 {[%clk 0:02:43]}  Nf6 {[%clk 0:02:59]} 2. Nc3 {[%clk 0:02:42]}  g6 {[%clk 0:02:57]} 3. e4 {[%clk 0:02:41]}  e5 {[%clk 0:02:57]} 4. Nf3 {[%clk 0:02:39]}  Bg7 {[%clk 0:02:57]} 5. Nxe5 {[%clk 0:02:39]}  O-O {[%clk 0:02:58]} 6. d4 {[%clk 0:02:37]}  Re8 {[%clk 0:02:56]} 7. Be3 {[%clk 0:02:25]}  d6 {[%clk 0:02:54]} 8. Nf3 {[%clk 0:02:26]}  Nxe4 {[%clk 0:02:49]} 9. Nxe4 {[%clk 0:02:27]}  Rxe4 {[%clk 0:02:49]} 10. Bd3 {[%clk 0:02:26]}  Re8 {[%clk 0:02:50]} 11. O-O {[%clk 0:02:25]}  Nc6 {[%clk 0:02:49]} 12. d5 {[%clk 0:02:24]}  Ne5 {[%clk 0:02:46]} 13. Nxe5 {[%clk 0:02:23]}  Bxe5 {[%clk 0:02:47]} 14. Qc2 {[%clk 0:02:21]}  b6 {[%clk 0:02:43]} 15. Rae1 {[%clk 0:02:19]}  Bd7 {[%clk 0:02:41]} 16. f4 {[%clk 0:02:19]}  Bf6 {[%clk 0:02:37]} 17. Bf2 {[%clk 0:02:16]}  Rxe1 {[%clk 0:02:33]} 18. Rxe1 {[%clk 0:02:15]}  Qf8 {[%clk 0:02:34]} 19. b4 {[%clk 0:02:14]}  Re8 {[%clk 0:02:34]} 20. Rxe8 {[%clk 0:02:10]}  Qxe8 {[%clk 0:02:35]} 21. c5 {[%clk 0:02:09]}  Ba4 {[%clk 0:02:30]} 22. Qd2 {[%clk 0:01:59]}  Bb5 {[%clk 0:02:27]} 23. cxd6 {[%clk 0:01:58]}  cxd6 {[%clk 0:02:26]} 24. h3 {[%clk 0:01:39]}  Bxd3 {[%clk 0:02:20]} 25. Qxd3 {[%clk 0:01:40]}  Qa4 {[%clk 0:02:20]} 26. Qc4 {[%clk 0:01:30]}  Qd1+ {[%clk 0:02:18]} 27. Kh2 {[%clk 0:01:29]}  Qd2 {[%clk 0:02:17]} 28. Bg3 {[%clk 0:01:22]}  h5 {[%clk 0:02:15]} 29. f5 {[%clk 0:01:20]}  Bd4 {[%clk 0:02:05]} 30. Bxd6 {[%clk 0:01:14]}  Qd1 {[%clk 0:02:01]} 31. Qc8+ {[%clk 0:01:03]}  Kh7 {[%clk 0:01:52]} 32. fxg6+ {[%clk 0:01:03]}  Kxg6 {[%clk 0:01:36]} 33. Qg8+ {[%clk 0:00:56]}  Kf6 {[%clk 0:01:36]} 34. Qe8 {[%clk 0:00:39]}  Qg1+ {[%clk 0:00:19]} 35. Kg3 {[%clk 0:00:37]}  Qf2+ {[%clk 0:00:19]} 36. Kh2 {[%clk 0:00:36]}  Qg1+ {[%clk 0:00:20]} 37. Kg3 {[%clk 0:00:37]}  Qf2+ {[%clk 0:00:20]} 38. Kh2 {[%clk 0:00:34]}  Qg1+ {[%clk 0:00:20]} 1/2-1/2


[Site "https://www.chess.com"]